[Event "*** Titled Tuesday Blitz"]
[Site "Chess.com"]
[Date "2021.03.09"]
[Round "2"]
[White "OriTaichman"]
[Black "ram1zan"]
[Result "0-1"]
[WhiteElo "2528"]
[BlackElo "2826"]
[TimeControl "180+1"]
[EndTime "10:17:22 PST"]
[Termination "ram1zan won by resignation"]

1. e4 {[%clk 0:03:00.9]} 1... c5 {[%clk 0:02:59.1]} 2. b3 {[%clk 0:03:01]} 2...
Nf6 {[%clk 0:02:58]} 3. e5 {[%clk 0:03:00.1]} 3... Nd5 {[%clk 0:02:57.9]} 4. Bb2
{[%clk 0:03:00.7]} 4... Nc6 {[%clk 0:02:58]} 5. g3 {[%clk 0:03:00.2]} 5... g6
{[%clk 0:02:54.2]} 6. Bg2 {[%clk 0:02:50.5]} 6... Nc7 {[%clk 0:02:52.1]} 7. Nf3
{[%clk 0:02:33]} 7... Bg7 {[%clk 0:02:51.1]} 8. h4 {[%clk 0:02:31.6]} 8... d6
{[%clk 0:02:47.4]} 9. Qe2 {[%clk 0:02:29.8]} 9... Bg4 {[%clk 0:02:41.6]} 10. Qe4
{[%clk 0:02:05.9]} 10... Bf5 {[%clk 0:02:37.2]} 11. Qe2 {[%clk 0:01:49.3]} 11...
Bg4 {[%clk 0:02:05.7]} 12. Qe4 {[%clk 0:01:43.8]} 12... Bxf3 {[%clk 0:02:05]}
13. Qxf3 {[%clk 0:01:39.8]} 13... Nxe5 {[%clk 0:01:57.4]} 14. Bxe5 {[%clk
0:01:16.5]} 14... Bxe5 {[%clk 0:01:58.3]} 15. Nc3 {[%clk 0:01:17.4]} 15... d5
{[%clk 0:01:41.5]} 16. O-O-O {[%clk 0:01:07.1]} 16... e6 {[%clk 0:01:36.5]} 17.
Rhe1 {[%clk 0:01:03.6]} 17... Qd6 {[%clk 0:01:31.4]} 18. h5 {[%clk 0:00:57.9]}
18... O-O {[%clk 0:01:26.5]} 19. hxg6 {[%clk 0:00:54.2]} 19... hxg6 {[%clk
0:01:27.4]} 20. Qe3 {[%clk 0:00:28.1]} 20... Bg7 {[%clk 0:01:17.2]} 21. Ne2
{[%clk 0:00:25.8]} 21... c4 {[%clk 0:01:07.7]} 22. Nf4 {[%clk 0:00:23]} 22...
Qa3+ {[%clk 0:01:07.2]} 0-1

[Event "*** Titled Tuesday Blitz"]
[Site "Chess.com"]
[Date "2021.03.09"]
[Round "2"]
[White "DamianoLew95"]
[Black "A-Fier"]
[Result "0-1"]
[WhiteElo "2487"]
[BlackElo "2701"]
[TimeControl "180+1"]
[EndTime "10:17:27 PST"]
[Termination "A-Fier won by resignation"]

1. d4 {[%clk 0:03:00.9]} 1... Nf6 {[%clk 0:03:00.1]} 2. Bf4 {[%clk 0:02:59.3]}
2... c5 {[%clk 0:03:00.3]} 3. e3 {[%clk 0:02:58.7]} 3... Qb6 {[%clk 0:03:01]} 4.
Nc3 {[%clk 0:02:58.9]} 4... d6 {[%clk 0:03:01.5]} 5. Rb1 {[%clk 0:02:54]} 5...
g6 {[%clk 0:03:01]} 6. h3 {[%clk 0:02:53.8]} 6... Bg7 {[%clk 0:03:01.1]} 7. Nf3
{[%clk 0:02:54.1]} 7... O-O {[%clk 0:03:01.7]} 8. Be2 {[%clk 0:02:53.1]} 8...
Nc6 {[%clk 0:03:00.2]} 9. O-O {[%clk 0:02:48.2]} 9... cxd4 {[%clk 0:02:54.4]}
10. exd4 {[%clk 0:02:46.7]} 10... d5 {[%clk 0:02:54.6]} 11. Na4 {[%clk
0:02:30.9]} 11... Qa5 {[%clk 0:02:54.6]} 12. c3 {[%clk 0:02:30.7]} 12... Ne4
{[%clk 0:02:51.3]} 13. Nd2 {[%clk 0:02:19.4]} 13... Nd6 {[%clk 0:02:49.2]} 14.
a3 {[%clk 0:02:06.9]} 14... Qd8 {[%clk 0:02:45]} 15. Nc5 {[%clk 0:02:05]} 15...
b6 {[%clk 0:02:42.3]} 16. Nd3 {[%clk 0:02:05.1]} 16... Bf5 {[%clk 0:02:41.9]}
17. Nf3 {[%clk 0:02:01.3]} 17... Nc4 {[%clk 0:02:39.1]} 18. Qc1 {[%clk
0:01:41.1]} 18... Rc8 {[%clk 0:02:37.8]} 19. Bh6 {[%clk 0:01:32.4]} 19... Qd6
{[%clk 0:02:35.1]} 20. Bxg7 {[%clk 0:01:31.8]} 20... Kxg7 {[%clk 0:02:36]} 21.
Ra1 {[%clk 0:01:13.2]} 21... N6a5 {[%clk 0:02:34.9]} 22. Ra2 {[%clk 0:01:05.9]}
22... f6 {[%clk 0:02:24.2]} 23. Re1 {[%clk 0:00:57.7]} 23... e5 {[%clk
0:02:23.8]} 24. dxe5 {[%clk 0:00:51.3]} 24... fxe5 {[%clk 0:02:23]} 25. Nb4
{[%clk 0:00:49.5]} 25... e4 {[%clk 0:02:09.6]} 26. Nd4 {[%clk 0:00:49]} 26...
Be6 {[%clk 0:02:04.9]} 27. Qg5 {[%clk 0:00:34.9]} 27... Ne5 {[%clk 0:01:54.8]}
28. Qg3 {[%clk 0:00:31.9]} 28... Nb7 {[%clk 0:01:51.2]} 29. Nbc2 {[%clk
0:00:30]} 29... Rcd8 {[%clk 0:01:49.6]} 30. Ne3 {[%clk 0:00:29.9]} 30... Nc5
{[%clk 0:01:49.2]} 31. Raa1 {[%clk 0:00:28.5]} 31... Ned3 {[%clk 0:01:45.8]} 32.
Bxd3 {[%clk 0:00:28.6]} 32... Nxd3 {[%clk 0:01:44.5]} 33. Re2 {[%clk 0:00:27.8]}
33... Bg8 {[%clk 0:01:44.5]} 34. Qxd6 {[%clk 0:00:26.5]} 34... Rxd6 {[%clk
0:01:44.8]} 35. Rd1 {[%clk 0:00:25.8]} 35... Rdf6 {[%clk 0:01:44.6]} 36. f3
{[%clk 0:00:24.2]} 36... Nf4 {[%clk 0:01:42.8]} 37. Red2 {[%clk 0:00:20.3]}
37... exf3 {[%clk 0:01:42.2]} 38. Nxf3 {[%clk 0:00:20.3]} 38... Nxh3+ {[%clk
0:01:42.9]} 39. Kh2 {[%clk 0:00:20.6]} 39... Nf4 {[%clk 0:01:43.4]} 40. Nxd5
{[%clk 0:00:20.7]} 40... Nxd5 {[%clk 0:01:43.6]} 0-1

[Event "*** Titled Tuesday Blitz"]
[Site "Chess.com"]
[Date "2021.03.09"]
[Round "2"]
[White "Nozdrachev_Vladislav"]
[Black "Cherone"]
[Result "1-0"]
[WhiteElo "2707"]
[BlackElo "2490"]
[TimeControl "180+1"]
[EndTime "10:17:29 PST"]
[Termination "Nozdrachev_Vladislav won by resignation"]

1. e4 {[%clk 0:03:00.9]} 1... d6 {[%clk 0:02:59.8]} 2. d4 {[%clk 0:03:00.2]}
2... Nf6 {[%clk 0:03:00.1]} 3. Nc3 {[%clk 0:02:59.7]} 3... e5 {[%clk 0:03:00.4]}
4. Nge2 {[%clk 0:02:58.3]} 4... c6 {[%clk 0:02:58.7]} 5. a4 {[%clk 0:02:54.1]}
5... b6 {[%clk 0:02:54.2]} 6. d5 {[%clk 0:02:49]} 6... Bb7 {[%clk 0:02:48]} 7.
Ng3 {[%clk 0:02:46.2]} 7... cxd5 {[%clk 0:02:45.8]} 8. exd5 {[%clk 0:02:44.5]}
8... g6 {[%clk 0:02:43.6]} 9. Bb5+ {[%clk 0:02:32.4]} 9... Nbd7 {[%clk
0:02:42.3]} 10. O-O {[%clk 0:02:31.9]} 10... Bg7 {[%clk 0:02:38]} 11. Nge4
{[%clk 0:02:26.5]} 11... Nxe4 {[%clk 0:02:32]} 12. Nxe4 {[%clk 0:02:26]} 12...
Qc7 {[%clk 0:02:23.8]} 13. Ra3 {[%clk 0:02:10.7]} 13... a6 {[%clk 0:01:54]} 14.
Rc3 {[%clk 0:02:07.1]} 14... Qb8 {[%clk 0:01:54]} 15. Bc6 {[%clk 0:01:57.4]}
15... Ra7 {[%clk 0:01:46.1]} 16. Be3 {[%clk 0:01:44.6]} 16... Bc8 {[%clk
0:01:43.6]} 17. a5 {[%clk 0:01:24.2]} 17... O-O {[%clk 0:01:37]} 18. axb6 {[%clk
0:01:23.7]} 18... Nxb6 {[%clk 0:01:36.3]} 19. Rb3 {[%clk 0:01:23.4]} 19... Re7
{[%clk 0:01:03.4]} 20. Bxb6 {[%clk 0:01:17.4]} 20... Bf5 {[%clk 0:00:59.6]} 21.
Bc5 {[%clk 0:01:08.3]} 21... Qxb3 {[%clk 0:00:38.2]} 22. cxb3 {[%clk 0:01:07.2]}
22... dxc5 {[%clk 0:00:39.1]} 23. Nxc5 {[%clk 0:00:56.8]} 23... e4 {[%clk
0:00:38.7]} 24. d6 {[%clk 0:00:55]} 24... Re5 {[%clk 0:00:37.5]} 25. b4 {[%clk
0:00:54.9]} 25... a5 {[%clk 0:00:37.2]} 26. d7 {[%clk 0:00:54]} 26... axb4
{[%clk 0:00:37.1]} 27. d8=Q {[%clk 0:00:53.3]} 1-0

[Event "*** Titled Tuesday Blitz"]
[Site "Chess.com"]
[Date "2021.03.09"]
[Round "2"]
[White "kingofthenil"]
[Black "Haykoooo0o"]
[Result "1-0"]
[WhiteElo "2805"]
[BlackElo "2519"]
[TimeControl "180+1"]
[EndTime "10:17:30 PST"]
[Termination "kingofthenil won by resignation"]

1. e4 {[%clk 0:03:00.9]} 1... c5 {[%clk 0:02:59.5]} 2. d3 {[%clk 0:03:01.1]}
2... e6 {[%clk 0:02:59.8]} 3. g3 {[%clk 0:03:02]} 3... Nc6 {[%clk 0:02:58.5]} 4.
Bg2 {[%clk 0:03:02.9]} 4... Nge7 {[%clk 0:02:58.9]} 5. f4 {[%clk 0:03:03.1]}
5... d6 {[%clk 0:02:57.3]} 6. Nf3 {[%clk 0:03:04]} 6... g6 {[%clk 0:02:57.9]} 7.
O-O {[%clk 0:03:03.4]} 7... Bg7 {[%clk 0:02:58.5]} 8. c3 {[%clk 0:03:04.3]} 8...
O-O {[%clk 0:02:58.8]} 9. Be3 {[%clk 0:03:05.2]} 9... b6 {[%clk 0:02:58.7]} 10.
d4 {[%clk 0:03:05.4]} 10... cxd4 {[%clk 0:02:57.6]} 11. cxd4 {[%clk 0:03:06.3]}
11... d5 {[%clk 0:02:58.1]} 12. e5 {[%clk 0:03:06.8]} 12... Nf5 {[%clk
0:02:55.4]} 13. Bf2 {[%clk 0:03:07.2]} 13... Ba6 {[%clk 0:02:55.1]} 14. Re1
{[%clk 0:03:07.5]} 14... Rc8 {[%clk 0:02:50.3]} 15. Nc3 {[%clk 0:03:07]} 15...
Nb4 {[%clk 0:02:47.1]} 16. Qa4 {[%clk 0:03:06.7]} 16... Rc4 {[%clk 0:02:32.8]}
17. a3 {[%clk 0:03:04.4]} 17... b5 {[%clk 0:02:19.8]} 18. Qd1 {[%clk 0:02:29.3]}
18... Nc6 {[%clk 0:02:06.9]} 19. Bf1 {[%clk 0:02:24.5]} 19... Qb6 {[%clk
0:01:46.1]} 20. Bxc4 {[%clk 0:02:11.9]} 20... bxc4 {[%clk 0:01:47]} 21. Qd2
{[%clk 0:02:11.2]} 21... Qb3 {[%clk 0:01:41.4]} 22. g4 {[%clk 0:02:10.8]} 22...
Nfe7 {[%clk 0:01:37.5]} 23. Bh4 {[%clk 0:02:08.9]} 23... Rb8 {[%clk 0:01:35.6]}
24. Rab1 {[%clk 0:02:09.1]} 24... Nc8 {[%clk 0:01:33.2]} 25. f5 {[%clk
0:02:08.7]} 25... Nb6 {[%clk 0:01:26.7]} 26. Bf6 {[%clk 0:02:08.9]} 26... Bf8
{[%clk 0:01:23.9]} 27. Ng5 {[%clk 0:01:54.5]} 27... Re8 {[%clk 0:00:55.7]} 28.
Rf1 {[%clk 0:01:41.9]} 28... Nd7 {[%clk 0:00:52.1]} 29. Rf3 {[%clk 0:01:30.2]}
29... Nxd4 {[%clk 0:00:50.1]} 30. Rh3 {[%clk 0:01:27.1]} 30... exf5 {[%clk
0:00:41.6]} 31. Qxd4 {[%clk 0:01:18.1]} 31... Bc5 {[%clk 0:00:40.6]} 32. Qxc5
{[%clk 0:01:18.3]} 32... Nxc5 {[%clk 0:00:40.7]} 33. Rxh7 {[%clk 0:01:18.8]} 1-0

[Event "*** Titled Tuesday Blitz"]
[Site "Chess.com"]
[Date "2021.03.09"]
[Round "2"]
[White "Chopper1905"]
[Black "Malev212"]
[Result "1-0"]
[WhiteElo "2925"]
[BlackElo "2569"]
[TimeControl "180+1"]
[EndTime "10:17:34 PST"]
[Termination "Chopper1905 won by resignation"]

1. d4 {[%clk 0:03:00.9]} 1... Nf6 {[%clk 0:02:58.3]} 2. c4 {[%clk 0:03:00.8]}
2... d6 {[%clk 0:02:57.5]} 3. Nf3 {[%clk 0:03:00.5]} 3... Nbd7 {[%clk
0:02:56.4]} 4. Nc3 {[%clk 0:02:59.6]} 4... g6 {[%clk 0:02:55]} 5. e4 {[%clk
0:02:59.8]} 5... e5 {[%clk 0:02:53.4]} 6. Be2 {[%clk 0:03:00.2]} 6... Bg7 {[%clk
0:02:52.6]} 7. O-O {[%clk 0:03:00.8]} 7... O-O {[%clk 0:02:52.3]} 8. Be3 {[%clk
0:03:01.4]} 8... h6 {[%clk 0:02:48.2]} 9. dxe5 {[%clk 0:03:00.5]} 9... dxe5
{[%clk 0:02:47.4]} 10. Qc1 {[%clk 0:03:01]} 10... Kh7 {[%clk 0:02:45.6]} 11. Rd1
{[%clk 0:02:53.4]} 11... Qe7 {[%clk 0:02:41.1]} 12. Nd5 {[%clk 0:02:49.2]} 12...
Qd8 {[%clk 0:02:40.3]} 13. Nxf6+ {[%clk 0:02:06.2]} 13... Qxf6 {[%clk
0:02:39.1]} 14. c5 {[%clk 0:02:06.9]} 14... c6 {[%clk 0:02:38.6]} 15. h4 {[%clk
0:02:04.8]} 15... Qe7 {[%clk 0:02:36.2]} 16. h5 {[%clk 0:02:03]} 16... Nf6
{[%clk 0:02:35.7]} 17. hxg6+ {[%clk 0:02:00.8]} 17... fxg6 {[%clk 0:02:35.3]}
18. Qc2 {[%clk 0:01:56]} 18... Ng4 {[%clk 0:02:28.5]} 19. Bd2 {[%clk 0:01:55]}
19... Be6 {[%clk 0:02:24.6]} 20. b4 {[%clk 0:01:54.5]} 20... g5 {[%clk 0:02:21]}
21. Bc3 {[%clk 0:01:49.5]} 21... Rf4 {[%clk 0:02:16]} 22. Rd6 {[%clk 0:01:41.8]}
22... Raf8 {[%clk 0:02:14.2]} 23. Rad1 {[%clk 0:01:42.3]} 23... Bc8 {[%clk
0:02:12.6]} 24. a4 {[%clk 0:01:35.1]} 24... Nxf2 {[%clk 0:02:12.1]} 25. Kxf2
{[%clk 0:01:33.9]} 25... g4 {[%clk 0:02:11.9]} 26. Rh1 {[%clk 0:01:22.4]} 26...
gxf3 {[%clk 0:02:09.9]} 27. Bxf3 {[%clk 0:01:21.8]} 27... Qf7 {[%clk 0:02:03.1]}
28. Qe2 {[%clk 0:00:37.3]} 28... Bg4 {[%clk 0:02:04]} 29. Rd3 {[%clk 0:00:37.4]}
29... h5 {[%clk 0:01:57.3]} 30. Bd2 {[%clk 0:00:37.2]} 30... Rf6 {[%clk
0:01:53.2]} 31. Ke1 {[%clk 0:00:34.4]} 31... Bxf3 {[%clk 0:01:46.8]} 32. gxf3
{[%clk 0:00:32.7]} 32... Bh6 {[%clk 0:01:39.3]} 33. Bxh6 {[%clk 0:00:20.2]}
33... Rxh6 {[%clk 0:01:37.3]} 34. Qd2 {[%clk 0:00:20.8]} 34... Kh8 {[%clk
0:01:35]} 35. Qxh6+ {[%clk 0:00:20.5]} 1-0

[Event "*** Titled Tuesday Blitz"]
[Site "Chess.com"]
[Date "2021.03.09"]
[Round "2"]
[White "axvesik"]
[Black "politeplayer"]
[Result "1-0"]
[WhiteElo "2525"]
[BlackElo "2290"]
[TimeControl "180+1"]
[EndTime "10:17:36 PST"]
[Termination "axvesik won by resignation"]

1. e4 {[%clk 0:03:00.9]} 1... e5 {[%clk 0:02:57.9]} 2. Nf3 {[%clk 0:02:52.8]}
2... Nf6 {[%clk 0:02:57.7]} 3. Nxe5 {[%clk 0:02:40.8]} 3... d6 {[%clk
0:02:57.7]} 4. Nf3 {[%clk 0:02:40.7]} 4... Nxe4 {[%clk 0:02:57]} 5. Nc3 {[%clk
0:02:41.6]} 5... Nxc3 {[%clk 0:02:56.4]} 6. dxc3 {[%clk 0:02:42.5]} 6... Be7
{[%clk 0:02:56.4]} 7. Bf4 {[%clk 0:02:42.2]} 7... O-O {[%clk 0:02:56.4]} 8. Qd2
{[%clk 0:02:42.8]} 8... Nd7 {[%clk 0:02:53.8]} 9. O-O-O {[%clk 0:02:42.7]} 9...
Nc5 {[%clk 0:02:40.9]} 10. Nd4 {[%clk 0:02:40.6]} 10... Bf6 {[%clk 0:02:31.9]}
11. Kb1 {[%clk 0:02:38.9]} 11... Re8 {[%clk 0:02:26.3]} 12. f3 {[%clk
0:02:38.2]} 12... Ne6 {[%clk 0:02:06.9]} 13. Nxe6 {[%clk 0:02:35.2]} 13... Bxe6
{[%clk 0:02:04.9]} 14. Bd3 {[%clk 0:02:35.2]} 14... Qd7 {[%clk 0:02:01.8]} 15.
g4 {[%clk 0:02:34.6]} 15... Qa4 {[%clk 0:01:40.7]} 16. a3 {[%clk 0:02:25.8]}
16... b5 {[%clk 0:01:25.2]} 17. g5 {[%clk 0:02:15.9]} 17... Bxc3 {[%clk
0:01:23.1]} 18. Qxc3 {[%clk 0:01:56.2]} 18... Qxf4 {[%clk 0:01:22.5]} 19. Bxb5
{[%clk 0:01:56.2]} 19... Rec8 {[%clk 0:00:54.1]} 20. Bc6 {[%clk 0:01:55.5]}
20... Rab8 {[%clk 0:00:52.2]} 21. h4 {[%clk 0:01:49.7]} 21... Rb6 {[%clk
0:00:47.7]} 22. Rd4 {[%clk 0:01:31.8]} 22... Qf5 {[%clk 0:00:31.9]} 23. Be4
{[%clk 0:01:23.2]} 23... Qb5 {[%clk 0:00:27.8]} 24. h5 {[%clk 0:01:18.5]} 24...
c5 {[%clk 0:00:22.5]} 25. Rd2 {[%clk 0:01:14.3]} 25... d5 {[%clk 0:00:22.6]} 26.
Bxd5 {[%clk 0:01:12.7]} 26... Rd8 {[%clk 0:00:14.8]} 27. h6 {[%clk 0:01:12.2]}
27... f6 {[%clk 0:00:12.1]} 28. Bxe6+ {[%clk 0:01:12]} 1-0

[Event "*** Titled Tuesday Blitz"]
[Site "Chess.com"]
[Date "2021.03.09"]
[Round "2"]
[White "Trickov"]
[Black "igorkovalenko"]
[Result "0-1"]
[WhiteElo "2363"]
[BlackElo "2938"]
[TimeControl "180+1"]
[EndTime "10:17:38 PST"]
[Termination "igorkovalenko won on time"]

1. d4 {[%clk 0:02:56.4]} 1... Nf6 {[%clk 0:02:59.8]} 2. Nf3 {[%clk 0:02:55.7]}
2... b6 {[%clk 0:02:59.8]} 3. g3 {[%clk 0:02:55.4]} 3... Bb7 {[%clk 0:03:00.7]}
4. Bg2 {[%clk 0:02:55.6]} 4... g6 {[%clk 0:03:01.2]} 5. O-O {[%clk 0:02:56.2]}
5... Bg7 {[%clk 0:03:01.9]} 6. c4 {[%clk 0:02:56.7]} 6... O-O {[%clk 0:03:02.3]}
7. Nc3 {[%clk 0:02:57.2]} 7... Ne4 {[%clk 0:03:02.8]} 8. Qc2 {[%clk 0:02:53.9]}
8... Nxc3 {[%clk 0:03:02.7]} 9. bxc3 {[%clk 0:02:53.7]} 9... c5 {[%clk
0:03:00.5]} 10. e4 {[%clk 0:02:51.7]} 10... Nc6 {[%clk 0:03:00.1]} 11. Be3
{[%clk 0:02:48.8]} 11... d6 {[%clk 0:02:59.7]} 12. Rfd1 {[%clk 0:02:47.3]} 12...
Qc7 {[%clk 0:02:59.1]} 13. Rac1 {[%clk 0:02:46.2]} 13... Na5 {[%clk 0:02:57.3]}
14. Qe2 {[%clk 0:02:41.1]} 14... Bxe4 {[%clk 0:02:44.6]} 15. d5 {[%clk
0:02:40.7]} 15... Rae8 {[%clk 0:02:33]} 16. Re1 {[%clk 0:02:30.1]} 16... Bf5
{[%clk 0:02:32.2]} 17. h3 {[%clk 0:02:23.5]} 17... Bc8 {[%clk 0:02:31.9]} 18.
Rcd1 {[%clk 0:02:18.5]} 18... Qd7 {[%clk 0:02:31.8]} 19. Bg5 {[%clk 0:02:10.9]}
19... f6 {[%clk 0:02:31.4]} 20. Bc1 {[%clk 0:02:08.6]} 20... Qa4 {[%clk
0:02:29.9]} 21. Bf1 {[%clk 0:02:03.6]} 21... Bd7 {[%clk 0:02:22.6]} 22. Bf4
{[%clk 0:01:49.1]} 22... a6 {[%clk 0:02:16.7]} 23. Rb1 {[%clk 0:01:46.5]} 23...
b5 {[%clk 0:02:16.8]} 24. cxb5 {[%clk 0:01:09]} 24... axb5 {[%clk 0:02:17.7]}
25. Qd2 {[%clk 0:01:07.8]} 25... Nc4 {[%clk 0:02:14.4]} 26. Qd3 {[%clk
0:00:49.8]} 26... h6 {[%clk 0:02:13.6]} 27. Rec1 {[%clk 0:00:43.8]} 27... g5
{[%clk 0:02:12.3]} 28. Bd2 {[%clk 0:00:35]} 28... f5 {[%clk 0:02:07.9]} 29. Be1
{[%clk 0:00:32]} 29... f4 {[%clk 0:02:00.7]} 30. Qd1 {[%clk 0:00:28.9]} 30...
Qxd1 {[%clk 0:01:58.5]} 31. Rxd1 {[%clk 0:00:28.9]} 31... fxg3 {[%clk
0:01:58.3]} 32. Nd2 {[%clk 0:00:23.6]} 32... gxf2+ {[%clk 0:01:55.7]} 33. Bxf2
{[%clk 0:00:23.2]} 33... Nxd2 {[%clk 0:01:55.2]} 34. Rxd2 {[%clk 0:00:22.9]}
34... Bxc3 {[%clk 0:01:55.8]} 35. Re2 {[%clk 0:00:19.4]} 35... b4 {[%clk
0:01:55.7]} 36. Rc2 {[%clk 0:00:11.3]} 36... Bf5 {[%clk 0:01:54]} 37. Rbc1
{[%clk 0:00:05.5]} 37... Bxc2 {[%clk 0:01:53.3]} 38. Rxc2 {[%clk 0:00:05.9]}
38... Rf4 {[%clk 0:01:52.6]} 39. a3 {[%clk 0:00:04.9]} 39... Ref8 {[%clk
0:01:50.9]} 40. axb4 {[%clk 0:00:03.6]} 40... Bd4 {[%clk 0:01:51.2]} 0-1

[Event "*** Titled Tuesday Blitz"]
[Site "Chess.com"]
[Date "2021.03.09"]
[Round "2"]
[White "jens1102"]
[Black "TimKett"]
[Result "1-0"]
[WhiteElo "2425"]
[BlackElo "2187"]
[TimeControl "180+1"]
[EndTime "10:17:39 PST"]
[Termination "jens1102 won by resignation"]

1. e4 {[%clk 0:03:00.9]} 1... e5 {[%clk 0:02:59.4]} 2. Nf3 {[%clk 0:03:00.6]}
2... Nc6 {[%clk 0:02:59]} 3. Bb5 {[%clk 0:03:01.2]} 3... a6 {[%clk 0:02:58.3]}
4. Ba4 {[%clk 0:03:01.4]} 4... f5 {[%clk 0:02:58.4]} 5. d3 {[%clk 0:03:00.3]}
5... fxe4 {[%clk 0:02:58.2]} 6. dxe4 {[%clk 0:03:00.4]} 6... Nf6 {[%clk
0:02:58.7]} 7. O-O {[%clk 0:02:55.8]} 7... Bc5 {[%clk 0:02:58.4]} 8. Bxc6 {[%clk
0:02:52.9]} 8... bxc6 {[%clk 0:02:57.5]} 9. Nxe5 {[%clk 0:02:53.4]} 9... O-O
{[%clk 0:02:48.6]} 10. Nd3 {[%clk 0:02:51.7]} 10... Nxe4 {[%clk 0:02:33.6]} 11.
Nc3 {[%clk 0:02:36.2]} 11... Nxc3 {[%clk 0:02:01.7]} 12. bxc3 {[%clk 0:02:35.7]}
12... Bb6 {[%clk 0:01:57]} 13. Ba3 {[%clk 0:02:32.9]} 13... d6 {[%clk 0:01:57]}
14. c4 {[%clk 0:02:33.3]} 14... Bd4 {[%clk 0:01:48.9]} 15. Rb1 {[%clk 0:02:31]}
15... Be6 {[%clk 0:01:37]} 16. Nb4 {[%clk 0:02:09.2]} 16... Qh4 {[%clk
0:01:18.1]} 17. g3 {[%clk 0:01:48]} 17... Qf6 {[%clk 0:01:17.8]} 18. Qe2 {[%clk
0:01:30.4]} 18... Bh3 {[%clk 0:01:10.4]} 19. Nxc6 {[%clk 0:01:26.4]} 19... Bxf1
{[%clk 0:01:08.1]} 20. Rxf1 {[%clk 0:01:27.3]} 20... Rae8 {[%clk 0:01:04.6]} 21.
Qd2 {[%clk 0:01:24.9]} 21... Bc5 {[%clk 0:00:59]} 22. Bxc5 {[%clk 0:01:13.7]}
22... dxc5 {[%clk 0:00:58.9]} 23. Qd5+ {[%clk 0:01:14.3]} 23... Re6 {[%clk
0:00:46.8]} 24. f4 {[%clk 0:01:14.5]} 24... Kh8 {[%clk 0:00:44.9]} 25. Ne5
{[%clk 0:01:14.6]} 25... g5 {[%clk 0:00:33.2]} 26. Nd7 {[%clk 0:01:05.4]} 26...
Qe5 {[%clk 0:00:14.6]} 1-0

[Event "*** Titled Tuesday Blitz"]
[Site "Chess.com"]
[Date "2021.03.09"]
[Round "2"]
[White "Luibov_AN"]
[Black "kuhlmann"]
[Result "0-1"]
[WhiteElo "2109"]
[BlackElo "2405"]
[TimeControl "180+1"]
[EndTime "10:17:40 PST"]
[Termination "kuhlmann won by resignation"]

1. d4 {[%clk 0:02:42.4]} 1... a5 {[%clk 0:02:58.6]} 2. a3 {[%clk 0:02:41.3]}
2... g6 {[%clk 0:02:56.7]} 3. Nf3 {[%clk 0:02:41.7]} 3... Bg7 {[%clk 0:02:51.4]}
4. e4 {[%clk 0:02:41.9]} 4... d6 {[%clk 0:02:51.4]} 5. c3 {[%clk 0:02:41.8]}
5... Nd7 {[%clk 0:02:51.2]} 6. Qc2 {[%clk 0:02:42]} 6... e5 {[%clk 0:02:51.1]}
7. dxe5 {[%clk 0:02:41.6]} 7... dxe5 {[%clk 0:02:50.7]} 8. Bg5 {[%clk
0:02:41.6]} 8... Ngf6 {[%clk 0:02:49.7]} 9. Nbd2 {[%clk 0:02:41.4]} 9... a4
{[%clk 0:02:47.7]} 10. Bc4 {[%clk 0:02:41.3]} 10... c6 {[%clk 0:02:42.3]} 11.
Ba2 {[%clk 0:02:39.5]} 11... O-O {[%clk 0:02:41.2]} 12. Rd1 {[%clk 0:02:38.2]}
12... Qe7 {[%clk 0:02:34.8]} 13. c4 {[%clk 0:02:38]} 13... Nc5 {[%clk 0:02:32]}
14. Kf1 {[%clk 0:02:37.2]} 14... h6 {[%clk 0:02:22.5]} 15. Be3 {[%clk
0:02:36.3]} 15... Nfd7 {[%clk 0:02:21.3]} 16. h3 {[%clk 0:02:36.4]} 16... Nb6
{[%clk 0:02:15.2]} 17. Nb1 {[%clk 0:02:35.6]} 17... Be6 {[%clk 0:02:07.8]} 18.
Kg1 {[%clk 0:02:34.5]} 18... Rfd8 {[%clk 0:02:07.1]} 19. Kh2 {[%clk 0:02:33.3]}
19... Kh7 {[%clk 0:02:03.5]} 20. Rhe1 {[%clk 0:02:19.1]} 20... Nbd7 {[%clk
0:01:51.9]} 21. Nfd2 {[%clk 0:02:18.9]} 21... f5 {[%clk 0:01:43.5]} 22. f3
{[%clk 0:02:16.7]} 22... Bf6 {[%clk 0:01:36.4]} 23. Bf2 {[%clk 0:02:14.9]} 23...
Bh4 {[%clk 0:01:33.4]} 24. g3 {[%clk 0:02:12.8]} 24... Bg5 {[%clk 0:01:32.9]}
25. Nc3 {[%clk 0:02:12.6]} 25... f4 {[%clk 0:01:30.6]} 26. g4 {[%clk 0:02:12.2]}
26... Bh4 {[%clk 0:01:30.6]} 27. Bxc5 {[%clk 0:02:06.7]} 27... Nxc5 {[%clk
0:01:24.3]} 28. Re2 {[%clk 0:02:06.8]} 28... Rd7 {[%clk 0:01:18]} 29. b3 {[%clk
0:02:06.5]} 29... axb3 {[%clk 0:01:17.2]} 30. Nxb3 {[%clk 0:02:05.6]} 30... Rad8
{[%clk 0:01:17.3]} 31. Nxc5 {[%clk 0:02:03.3]} 31... Qxc5 {[%clk 0:01:18.2]} 32.
Red2 {[%clk 0:02:04.2]} 32... Rd4 {[%clk 0:01:17.8]} 33. Ne2 {[%clk 0:02:00.4]}
33... Rxd2 {[%clk 0:01:16.6]} 34. Rxd2 {[%clk 0:02:00.7]} 34... Rxd2 {[%clk
0:01:16.4]} 35. Qxd2 {[%clk 0:02:01.6]} 35... Qxa3 {[%clk 0:01:16.7]} 36. Bb1
{[%clk 0:01:51.3]} 36... Qe3 {[%clk 0:01:15.9]} 37. Qb2 {[%clk 0:01:48.2]} 37...
Qf2+ {[%clk 0:01:14.6]} 38. Kh1 {[%clk 0:01:47.4]} 38... Bg3 {[%clk 0:01:13.8]}
39. Qxb7+ {[%clk 0:01:45]} 39... Kg8 {[%clk 0:01:10.9]} 40. Qb8+ {[%clk
0:01:44.4]} 40... Kh7 {[%clk 0:01:07.5]} 41. Qc7+ {[%clk 0:01:43.8]} 41... Kg8
{[%clk 0:00:59.2]} 42. Qb8+ {[%clk 0:01:40.4]} 42... Kf7 {[%clk 0:00:58.6]} 43.
Qc7+ {[%clk 0:01:40.6]} 43... Kf8 {[%clk 0:00:58.3]} 44. Qd6+ {[%clk 0:01:39.4]}
44... Kf7 {[%clk 0:00:58.1]} 45. Nxg3 {[%clk 0:01:38]} 45... fxg3 {[%clk
0:00:56.7]} 46. Qc7+ {[%clk 0:01:38]} 46... Kf6 {[%clk 0:00:56.7]} 47. Qd8+
{[%clk 0:01:37.8]} 47... Kg7 {[%clk 0:00:56.8]} 48. Qc7+ {[%clk 0:01:36.1]}
48... Bf7 {[%clk 0:00:57]} 49. Qxe5+ {[%clk 0:01:35.7]} 49... Kh7 {[%clk
0:00:57.2]} 0-1